bitfinex-derivatives/quotes_SOLF0:USTF0_20250829
["timestamp","ask_amount","ask_price","bid_price","bid_amount"]
[1756482574065,11.6075,207.47,207.32,67.5178]
[1756482574066,15.69649995,207.53,207.41,4.3385]
[1756482574274,11.36039995,207.53,207.41,7.78]
[1756482574577,11.36039995,207.52,207.41,7.78]
[1756482575077,11.36039995,207.48,207.32,7.78]
[1756482575277,4.3375,207.46,207.36,4.3394]
[1756482575466,4.3375,207.46,207.32,7.78]
[1756482575874,11.36039995,207.44,207.32,7.78]
[1756482576474,7.27,207.42,207.27,67.5338]
[1756482576670,7.27,207.42,207.28,7.79]
[1756482577279,11.36039995,207.44,207.32,7.79]
[1756482577475,7.11,207.48,207.35,7.79]
[1756482577775,11.446,207.53,207.41,12.1285]
[1756482577977,7.11,207.53,207.41,7.79]
[1756482579169,7.11,207.53,207.35,7.79]
[1756482579170,18.47039995,207.5,207.35,7.79]
[1756482579372,67.4639,207.49,207.35,7.79]
[1756482579574,67.4639,207.49,207.35,12.1297]
[1756482579575,4.3377,207.45,207.35,12.1297]
[1756482579778,7.11,207.5,207.35,75.2979]
[1756482579979,7.11,207.5,207.36,7.79]
[1756482580175,7.11,207.5,207.39,4.3388]
[1756482580777,7.11,207.5,207.31,78.88059995]
[1756482580778,11.4478,207.45,207.32,4.3404]
[1756482580974,11.4478,207.45,207.31,7.79]
[1756482581269,7.11,207.45,207.34,7.79]
[1756482582274,4.3384,207.42,207.34,7.79]
[1756482582473,4.3384,207.42,207.31,4.3405]
[1756482582878,67.4834,207.43,207.29,7.79]
[1756482583080,7.11,207.41,207.29,7.79]
[1756482583879,11.4487,207.41,207.29,7.79]
[1756482584181,7.11,207.41,207.29,7.79]
[1756482584681,11.4486,207.41,207.32,4.3404]
[1756482585184,4.3391,207.39,207.29,12.1309]
[1756482585374,11.36039995,207.4,207.29,7.79]
[1756482585980,4.339,207.39,207.29,7.79]
[1756482586380,7.11,207.41,207.29,7.79]
[1756482586885,11.4488,207.41,207.3,4.3407]
[1756482587184,11.4488,207.41,207.29,7.79]
[1756482587583,7.11,207.41,207.3,67.5248]
[1756482588082,11.36039995,207.42,207.3,67.5248]
[1756482588388,11.36039995,207.46,207.31,7.79]
[1756482589776,4.3383,207.43,207.34,4.34]
[1756482590383,4.3383,207.43,207.31,7.79]
[1756482590685,4.3385,207.42,207.31,7.79]
[1756482590977,7.11,207.41,207.31,7.79]
[1756482591182,4.339,207.39,207.26,7.79]
[1756482591384,4.339,207.39,207.31,4.3406]
[1756482591783,4.3394,207.38,207.26,7.79]
[1756482592186,7.11,207.41,207.26,7.79]
[1756482592187,67.4954,207.4,207.26,7.79]
[1756482592383,7.11,207.35,207.21,67.5541]
[1756482592583,7.11,207.35,207.22,7.79]
[1756482593685,11.45,207.35,207.25,4.3418]
[1756482593886,11.45,207.35,207.22,7.79]
[1756482594181,7.11,207.35,207.23,67.5476]
[1756482594584,7.11,207.41,207.26,7.79]
[1756482594788,7.11,207.41,207.27,67.5347]
[1756482595082,18.47039995,207.46,207.37,4.3394]
[1756482595287,18.47039995,207.46,207.34,7.79]
[1756482595995,7.11,207.46,207.36,67.5059]
[1756482596183,7.11,207.46,207.37,4.3393]
[1756482596384,7.11,207.46,207.34,7.79]
[1756482596784,4.3379,207.45,207.36,4.3396]
[1756482596988,7.11,207.46,207.34,7.79]
[1756482598890,4.3381,207.44,207.36,4.3395]
[1756482599786,7.11,207.46,207.36,67.5058]
[1756482599986,7.11,207.46,207.34,75.3017]
[1756482600187,7.11,207.46,207.34,7.79]
[1756482600486,7.11,207.43,207.31,7.79]
[1756482601190,7.11,207.43,207.34,4.3399]
[1756482601595,4.3386,207.42,207.34,4.3399]
[1756482603799,67.4405,207.57,207.4,67.493]
[1756482603994,21.930995,207.56,207.41,67.4898]
[1756482604196,21.930995,207.56,207.39,7.79]
[1756482604197,7.11,207.51,207.39,7.79]
[1756482604392,7.11,207.56,207.44,67.4801]
[1756482604598,7.11,207.56,207.45,7.79]
[1756482604799,4.3357,207.55,207.45,7.79]
[1756482604997,7.11,207.56,207.45,75.2666]
[1756482605696,183.48107471,207.63,207.51,7.79]
[1756482606603,183.48107471,207.63,207.54,7.31]
[1756482606903,7.11,207.66,207.54,7.31]
[1756482607104,18.51039995,207.71,207.58,7.31]
[1756482607301,7.15,207.71,207.58,7.31]
[1756482607709,7.15,207.66,207.54,4.3357]
[1756482608002,74.56,207.66,207.52,7.31]
[1756482608297,7.15,207.66,207.52,7.31]
[1756482608707,4.334,207.63,207.52,7.31]
[1756482609003,7.15,207.66,207.52,7.31]
[1756482609203,25.09362408,207.71,207.55,7.31]
[1756482609404,4.333,207.68,207.58,4.335]
[1756482609602,7.15,207.71,207.54,67.4467]
[1756482609603,7.15,207.71,207.56,67.4391]
[1756482609809,67.3748,207.77,207.59,74.7411]
[1756482610102,67.3817,207.75,207.59,7.31]
[1756482611105,11.4823,207.71,207.59,7.31]
[1756482611307,7.15,207.71,207.59,7.31]
[1756482611500,67.396,207.7,207.59,7.31]
[1756482611704,4.3332,207.67,207.59,7.31]
[1756482611904,7.15,207.71,207.59,7.31]
[1756482612303,25.09362408,207.78,207.63,7.31]
[1756482612507,7.15,207.85,207.68,7.31]
[1756482612707,67.3538,207.83,207.68,7.31]
[1756482613012,67.3666,207.79,207.68,7.31]
[1756482613205,67.3666,207.79,207.59,90.73418797]
[1756482613206,67.3765,207.76,207.61,7.31]
[1756482613402,25.09362408,207.73,207.58,3.98129919]
[1756482613613,25.09362408,207.73,207.57,67.4376]
[1756482613809,7.15,207.73,207.6,7.31]
[1756482614210,25.09362408,207.78,207.63,7.31]
[1756482614814,4.3312,207.77,207.63,11.6439]
[1756482615616,17.94362408,207.83,207.67,7.31]
[1756482615909,4.3304,207.81,207.69,4.3327]
[1756482616418,11.4798,207.84,207.71,4.3323]
[1756482616609,7.15,207.84,207.72,7.31]
[1756482617508,7.15,207.84,207.64,67.4142]
[1756482617808,7.15,207.84,207.69,67.399]
[1756482618210,7.15,207.84,207.71,4.3323]
[1756482618408,7.15,207.84,207.68,7.31]
[1756482619105,7.15,207.8,207.68,7.31]
[1756482619514,67.367,207.79,207.68,7.31]
[1756482619904,4.3316,207.75,207.62,7.31]
[1756482620109,25.09362408,207.76,207.62,7.31]
[1756482620511,4.332,207.73,207.62,11.6442]
[1756482621410,4.332,207.73,207.64,4.3338]
[1756482621806,25.09362408,207.76,207.64,4.3338]
[1756482622007,92.47112408,207.76,207.62,7.31]
[1756482622413,25.09362408,207.76,207.62,7.31]
[1756482622609,25.09362408,207.81,207.69,4.3328]
[1756482622813,25.09362408,207.81,207.68,67.4029]
[1756482623012,7.15,207.81,207.69,7.31]
[1756482623208,7.15,207.81,207.69,11.6426]
[1756482623413,7.15,207.81,207.69,7.31]
[1756482623613,74.512,207.81,207.69,7.31]
[1756482623822,67.3676,207.79,207.64,7.31]
[1756482624016,4.3316,207.75,207.64,7.31]
[1756482624418,4.332,207.73,207.65,4.3336]
[1756482624618,4.332,207.73,207.64,7.31]
[1756482625011,4.332,207.73,207.59,67.4305]
[1756482625012,11.482,207.73,207.62,4.3341]
[1756482625219,4.3323,207.71,207.59,7.31]
[1756482625519,7.15,207.73,207.59,7.31]
[1756482625720,4.333,207.68,207.59,7.31]
[1756482626020,7.15,207.73,207.59,7.31]
[1756482626216,7.15,207.73,207.58,67.4347]
[1756482626411,67.3619,207.81,207.62,67.4219]
[1756482626412,67.3716,207.78,207.62,67.4219]
[1756482626613,67.3675,207.79,207.61,7.31]
[1756482626614,67.3743,207.77,207.61,7.31]
[1756482626818,67.3843,207.74,207.61,7.31]
[1756482627414,78.7485254,207.74,207.61,7.31]
[1756482627911,4.3328,207.69,207.61,7.31]
[1756482628119,11.3642254,207.7,207.57,7.31]
[1756482628320,11.3642254,207.74,207.58,67.4356]
[1756482629223,11.3642254,207.74,207.6,67.429]
[1756482629528,11.3642254,207.74,207.61,7.31]
[1756482629922,11.3642254,207.74,207.63,4.3341]
[1756482630228,11.3642254,207.74,207.62,67.4229]
[1756482630523,7.15,207.8,207.66,67.4098]
[1756482630730,7.15,207.8,207.68,67.4023]
[1756482631021,4.331,207.78,207.69,4.3326]
[1756482631327,7.15,207.8,207.69,67.3991]
[1756482631624,7.15,207.8,207.68,67.4034]
[1756482631819,7.15,207.8,207.67,7.31]
[1756482632521,74.515,207.8,207.67,7.31]
[1756482633127,4.3316,207.75,207.67,4.3332]
[1756482633424,7.15,207.76,207.61,7.31]
[1756482633825,67.381,207.75,207.61,7.31]
[1756482634025,74.5374,207.73,207.61,7.31]
[1756482634324,85.9016254,207.73,207.61,7.31]
[1756482634719,7.15,207.73,207.61,7.31]
[1756482634923,7.15,207.73,207.63,67.4191]
[1756482635124,7.15,207.78,207.63,67.4191]
[1756482635325,4.3312,207.77,207.67,4.3331]
[1756482635630,7.15,207.78,207.66,67.4089]
[1756482635815,7.15,207.78,207.67,67.4065]
[1756482636020,7.15,207.78,207.65,74.7231]
[1756482637026,4.3313,207.77,207.69,4.3326]
[1756482637223,7.15,207.78,207.65,7.31]
[1756482637525,4.332,207.74,207.65,11.6436]
[1756482637718,74.5219,207.78,207.59,7.35]
[1756482637719,75.0814,207.75,207.59,7.35]
[1756482638115,4.3328,207.7,207.62,4.3341]
[1756482638923,4.3322,207.73,207.62,7.35]
[1756482639129,7.7,207.75,207.62,7.35]
[1756482639432,7.7,207.81,207.67,7.35]
[1756482639929,12.0305,207.81,207.72,4.332]
[1756482640323,181.81445528,207.82,207.73,7.35]
[1756482640724,181.81445528,207.82,207.74,4.3317]
[1756482641026,7.7,207.88,207.75,7.35]
[1756482641229,4.3292,207.87,207.77,4.3311]
[1756482641726,0.8374645,207.91,207.78,7.35]
[1756482642028,67.3323,207.9,207.78,7.35]
[1756482642731,67.3422,207.87,207.73,11.3642254]
[1756482643031,4.3299,207.84,207.75,4.3315]
[1756482643826,4.3293,207.86,207.76,4.3312]
[1756482644023,7.7,207.88,207.76,4.3312]
[1756482644627,7.7,207.88,207.74,4.3318]
[1756482644628,67.3419,207.87,207.74,4.3318]
[1756482644825,67.3419,207.87,207.72,7.35]
[1756482645032,7.7,207.88,207.72,74.7399]
[1756482645235,4.3295,207.85,207.76,4.3313]
[1756482645429,4.3295,207.85,207.76,11.6813]
[1756482645630,75.0392,207.88,207.76,7.35]
[1756482645932,67.3423,207.87,207.76,7.35]
[1756482646232,7.7,207.83,207.7,7.35]
[1756482646531,7.7,207.8,207.66,7.35]
[1756482646736,7.7,207.8,207.69,4.3326]
[1756482647235,4.3308,207.79,207.7,4.3324]
[1756482647841,7.7,207.8,207.66,7.35]
[1756482648037,67.3711,207.78,207.66,7.35]
[1756482648339,7.7,207.76,207.66,7.35]
[1756482648539,4.3324,207.71,207.61,4.3343]
[1756482648742,78.7516254,207.73,207.6,7.35]
[1756482649034,78.7525254,207.73,207.6,7.35]
[1756482649535,11.3642254,207.73,207.61,4.3344]
[1756482649737,11.3642254,207.73,207.6,7.35]
[1756482649935,7.7,207.74,207.6,7.35]
[1756482651135,70.83884917,207.73,207.6,7.35]
[1756482651336,3.45149968,207.72,207.6,7.35]
[1756482651638,67.3917,207.72,207.6,7.35]
[1756482651833,11.15122367,207.71,207.6,7.35]
[1756482652037,7.7,207.71,207.6,7.35]
[1756482652345,78.7521254,207.73,207.53,7.35]
[1756482652346,67.4131,207.65,207.53,7.35]
[1756482652932,4.3346,207.61,207.53,7.35]
[1756482653140,7.7,207.64,207.53,7.35]
[1756482653538,15.6971254,207.69,207.56,4.3355]
[1756482653742,11.3642254,207.69,207.57,7.35]
[1756482654537,4.3334,207.66,207.58,4.3349]
[1756482654743,11.3642254,207.69,207.58,4.3349]
[1756482655038,7.7,207.65,207.51,11.34870942]
[1756482655240,4.3344,207.62,207.53,4.3359]
[1756482655433,7.7,207.65,207.54,74.7978]
[1756482655941,7.7,207.65,207.58,4.3349]
[1756482656636,4.333,207.68,207.6,4.3346]
[1756482656843,4.333,207.68,207.54,74.7978]
[1756482657043,4.333,207.68,207.59,4.3349]
[1756482657346,19.0642254,207.7,207.56,67.4398]
[1756482657639,67.3997,207.69,207.54,7.35]
[1756482657843,7.7,207.68,207.54,7.35]
[1756482658231,7.7,207.64,207.55,4.3355]
[1756482658835,7.7,207.64,207.56,4.3353]
[1756482659042,7.7,207.64,207.54,7.35]
[1756482659436,7.7,207.64,207.56,4.3353]
[1756482660041,7.7,207.64,207.54,11.6859]
[1756482660237,7.7,207.69,207.58,67.4346]
[1756482660433,7.7,207.74,207.59,7.35]
[1756482660738,7.7,207.74,207.63,7.35]
[1756482660941,11.3642254,207.8,207.63,7.35]
[1756482661136,67.3841,207.74,207.58,3.99870942]
[1756482661336,11.3642254,207.68,207.58,7.35]
[1756482661533,19.0642254,207.68,207.58,7.35]
[1756482661943,67.3868,207.73,207.58,7.35]
[1756482662140,19.0642254,207.74,207.58,7.35]
[1756482662346,7.7,207.74,207.62,67.4223]
[1756482662545,7.7,207.74,207.6,7.35]
[1756482662845,7.7,207.74,207.6,74.778]
[1756482663035,11.3642254,207.78,207.64,7.35]
[1756482663036,4.3316,207.75,207.64,7.35]
[1756482663244,67.3741,207.77,207.64,7.35]
[1756482663739,67.3785,207.76,207.64,7.35]
[1756482663944,67.39,207.72,207.59,7.35]
[1756482664149,67.3935,207.71,207.59,7.35]
[1756482664336,4.3336,207.66,207.59,7.35]
[1756482665248,7.7,207.69,207.54,4.02619004]
[1756482665249,67.4066,207.67,207.54,4.02619004]
[1756482665551,67.4097,207.66,207.54,7.35]
[1756482665845,67.4097,207.66,207.48,67.4678]
[1756482665846,7.7,207.57,207.46,4.02619004]
[1756482666038,3.51264185,207.65,207.35,10.68769298]
[1756482666039,7.7,207.49,207.38,11.37619004]
[1756482666238,4.3359,207.55,207.43,4.3382]
[1756482666440,67.4585,207.51,207.43,7.35]
[1756482666842,4.3371,207.49,207.43,7.35]
[1756482667448,7.7,207.54,207.43,7.35]
[1756482668651,7.63,207.49,207.34,7.48]
[1756482669551,4.3377,207.46,207.36,4.3396]
[1756482670246,67.4689,207.48,207.31,67.5228]
[1756482670442,75.0963,207.49,207.32,7.48]
[1756482670443,7.63,207.46,207.32,7.48]
[1756482670844,67.4813,207.44,207.26,0.83913049]
[1756482671052,7.63,207.4,207.26,7.48]
[1756482671255,67.5038,207.37,207.26,7.48]
[1756482671547,4.3394,207.38,207.26,7.48]
[1756482671749,7.63,207.4,207.26,7.48]
[1756482672442,7.63,207.4,207.27,67.5362]
[1756482672649,93.08036143,207.46,207.3,7.48]
[1756482673346,4.3382,207.44,207.3,7.48]
[1756482673551,67.4883,207.42,207.23,67.5489]
[1756482673858,11.969,207.4,207.25,71.8843]
[1756482674354,11.969,207.4,207.26,67.5388]
[1756482674855,7.63,207.4,207.29,67.5284]
[1756482675055,7.63,207.4,207.28,7.48]
[1756482675255,7.63,207.4,207.31,4.3406]
[1756482675465,25.60526143,207.46,207.29,67.529]
[1756482675857,25.60526143,207.46,207.28,7.48]
[1756482675858,67.4809,207.44,207.3,4.3409]
[1756482676059,67.4913,207.41,207.28,7.48]
[1756482676260,7.63,207.4,207.28,7.48]
[1756482676465,4.3396,207.37,207.24,4.3421]
[1756482677266,7.63,207.4,207.24,4.3421]
[1756482677267,11.9689,207.4,207.24,4.3421]
[1756482677566,79.4632,207.4,207.24,4.3421]
[1756482677765,75.1243,207.4,207.24,4.3421]
[1756482678065,71.8399,207.38,207.23,7.48]
[1756482678260,4.3394,207.38,207.23,7.48]
[1756482678764,7.63,207.4,207.23,11.8223]
[1756482678967,7.63,207.4,207.26,67.5392]
[1756482679265,7.63,207.4,207.27,7.48]
[1756482679564,7.63,207.4,207.28,4.3414]
[1756482680355,11.969,207.4,207.27,7.48]
[1756482680561,7.63,207.4,207.22,7.48]
[1756482680870,7.63,207.36,207.24,67.5455]
[1756482681267,7.63,207.36,207.25,7.48]
[1756482682057,7.63,207.36,207.25,75.0219]
[1756482682261,4.3391,207.39,207.28,4.3413]
[1756482682968,11.9696,207.37,207.25,11.8218]
[1756482683166,7.63,207.37,207.26,67.5394]
[1756482683366,17.97526143,207.41,207.29,4.3411]
[1756482683666,17.97526143,207.41,207.28,7.48]
[1756482683874,7.63,207.42,207.32,4.3405]
[1756482684469,7.63,207.48,207.34,67.5134]
[1756482684670,11.9672,207.48,207.32,74.9998]
[1756482684872,7.63,207.46,207.32,7.48]
[1756482685068,4.3378,207.45,207.34,4.3401]
[1756482685464,7.63,207.46,207.36,4.3396]
[1756482685863,11.9677,207.46,207.32,7.48]
[1756482686269,67.478,207.45,207.32,11.8203]
[1756482686466,67.4816,207.44,207.32,11.8203]
[1756482686668,25.60526143,207.46,207.32,11.8203]
[1756482686870,7.63,207.52,207.37,67.503]
[1756482687171,75.0849,207.52,207.36,7.48]
[1756482687472,4.337,207.49,207.36,11.8195]
[1756482687672,4.337,207.49,207.36,7.48]
[1756482688075,11.38949758,207.51,207.36,7.48]
[1756482688076,11.38949758,207.51,207.4,4.3387]
[1756482688278,11.9665,207.52,207.4,7.48]
[1756482688673,7.63,207.52,207.4,7.48]
[1756482688874,7.63,207.52,207.41,67.4893]
[1756482689272,4.3355,207.56,207.46,11.8175]
[1756482689474,4.3355,207.56,207.47,7.48]
[1756482689875,4.3359,207.54,207.43,4.338]
[1756482690070,4.3359,207.54,207.42,67.4859]
[1756482690477,4.3363,207.52,207.41,7.48]
[1756482691180,4.3368,207.5,207.41,7.48]
[1756482691376,4.3368,207.5,207.41,11.8186]
[1756482691882,4.3372,207.48,207.41,7.48]
[1756482692082,75.0946,207.49,207.36,7.48]
[1756482692382,67.4741,207.46,207.36,7.48]
[1756482692583,67.4676,207.48,207.36,7.48]
[1756482692880,7.63,207.49,207.36,7.48]
[1756482693277,7.63,207.49,207.36,86.37579758]
[1756482693487,7.63,207.49,207.36,18.86949758]
[1756482693682,7.63,207.49,207.37,4.3393]
[1756482694283,3.71642503,207.48,207.37,4.3393]
[1756482694481,4.3374,207.47,207.37,4.3393]
[1756482694677,7.63,207.49,207.37,4.3393]
[1756482694983,4.3382,207.43,207.36,7.48]
[1756482695183,4.3382,207.43,207.31,7.48]
[1756482695377,75.1076,207.45,207.31,11.8205]
[1756482695578,4.3382,207.44,207.32,67.5191]
[1756482695778,4.3382,207.44,207.35,4.3398]
[1756482695978,7.63,207.45,207.31,7.48]
[1756482696382,4.3384,207.42,207.35,4.3399]
[1756482696582,7.63,207.45,207.35,4.3399]
[1756482696981,7.63,207.45,207.31,7.48]
[1756482697184,4.3391,207.39,207.31,7.48]
[1756482697486,7.34,207.41,207.31,7.48]
[1756482697686,4.3396,207.37,207.27,4.3413]
[1756482697879,4.3396,207.37,207.25,74.6918]
[1756482698682,7.34,207.37,207.25,7.15]
[1756482699583,4.3397,207.36,207.26,4.3416]
[1756482699879,7.34,207.37,207.25,7.15]
[1756482700485,7.34,207.37,207.25,11.4918]
[1756482700486,67.5066,207.36,207.25,11.4918]
[1756482700886,67.5066,207.36,207.25,7.15]
[1756482701085,4.3405,207.32,207.25,7.15]
[1756482701587,67.5167,207.33,207.19,7.15]
[1756482702288,18.72949758,207.34,207.19,7.15]
[1756482702788,86.24299758,207.34,207.2,4.3428]
[1756482702988,71.23702921,207.33,207.2,4.3428]
[1756482703283,3.72097625,207.32,207.2,4.3428]
[1756482703487,67.5167,207.33,207.2,4.3428]
[1756482703689,4.3411,207.3,207.2,4.3428]
[1756482703891,11.38949758,207.29,207.19,7.15]
[1756482704286,4.3414,207.28,207.19,7.15]
[1756482705185,4.3414,207.28,207.19,11.493]
[1756482705387,4.3417,207.27,207.19,11.493]
[1756482705881,11.6798,207.36,207.27,4.3413]
[1756482706081,11.6798,207.36,207.26,7.15]
[1756482706082,7.34,207.36,207.26,7.15]
[1756482706287,11.38949758,207.31,207.19,7.15]
[1756482706486,11.38949758,207.31,207.22,4.3426]
[1756482706687,11.38949758,207.31,207.19,74.7112]
[1756482706883,11.38949758,207.31,207.19,7.15]
[1756482707193,7.34,207.3,207.2,4.3428]
[1756482707584,7.34,207.3,207.19,7.15]
[1756482708591,67.5298,207.29,207.19,7.15]
[1756482708795,67.5298,207.29,207.14,7.15]
[1756482709895,7.34,207.3,207.15,67.5744]
[1756482710297,3.65939247,207.29,207.15,67.5744]
[1756482710493,4.3419,207.26,207.18,4.3432]
[1756482710692,7.34,207.28,207.14,7.15]
[1756482711091,7.34,207.23,207.14,7.15]
[1756482711798,4.3426,207.22,207.14,11.4941]
[1756482712190,4.3426,207.22,207.15,4.3439]
[1756482712596,7.34,207.23,207.14,7.15]
[1756482713597,18.72949758,207.29,207.14,74.727]
[1756482713798,18.72949758,207.29,207.16,67.571]
[1756482713987,7.34,207.29,207.15,7.15]
[1756482714596,4.3417,207.27,207.19,4.343]
[1756482715395,7.34,207.29,207.2,4.3428]
[1756482715793,74.8702,207.29,207.15,7.15]
[1756482715998,11.38949758,207.3,207.13,4.3443]
[1756482715999,7.34,207.23,207.13,4.3443]
[1756482717500,4.3432,207.19,207.11,4.3449]
[1756482717700,7.34,207.23,207.09,7.15]
[1756482718101,7.34,207.23,207.13,4.3443]
[1756482718102,4.3428,207.21,207.13,4.3443]
[1756482718399,67.5613,207.19,207.09,7.15]
[1756482718602,7.34,207.11,206.97,5.35926389]
[1756482718801,11.38949758,207.09,206.97,7.15]
[1756482719200,11.38949758,207.09,206.97,11.4976]
[1756482719201,4.3457,207.08,206.97,11.4976]
[1756482719398,4.3457,207.08,206.97,7.15]
[1756482719801,4.3457,207.08,206.99,4.3472]
[1756482720198,11.38949758,207.09,207.0,4.347]
[1756482720704,11.38949758,207.14,207.01,7.15]
[1756482721098,11.38949758,207.1,206.97,67.633]
[1756482721292,18.72949758,207.09,206.97,67.633]
[1756482721497,18.72949758,207.09,206.98,67.6293]
[1756482721700,4.3455,207.08,206.99,4.3474]
[1756482721900,7.34,207.09,206.98,67.6292]
[1756482722100,11.38949758,207.13,207.01,67.6192]
[1756482722296,11.38949758,207.13,207.0,7.15]
[1756482722500,7.34,207.15,207.04,7.15]
[1756482722696,186.74033782,207.2,207.04,7.15]
[1756482723008,7.34,207.15,207.03,4.3464]
[1756482723308,67.5719,207.16,206.99,7.15]
[1756482723309,7.34,207.1,206.99,7.15]
[1756482723607,7.34,207.1,206.99,11.4972]
[1756482724115,11.6851,207.1,206.99,11.4972]
[1756482724305,67.6006,207.07,206.94,4.3483]
[1756482724514,11.38949758,207.05,206.94,4.3483]
[1756482724697,4.3464,207.04,206.94,4.3483]
[1756482724898,11.38949758,207.05,206.93,7.15]
[1756482725505,11.38949758,207.05,206.95,4.3482]
[1756482725705,11.38949758,207.05,206.93,7.15]
[1756482725900,11.38949758,207.05,206.93,74.7959]
[1756482726103,7.34,207.06,206.96,67.636]
[1756482726301,7.34,207.06,206.95,67.6397]
[1756482726707,7.34,207.06,206.96,67.6356]
[1756482726909,11.38949758,207.09,206.99,67.6264]
[1756482727507,7.59,207.12,207.04,4.3463]
[1756482727700,7.59,207.12,207.02,67.615]
[1756482727904,7.59,207.12,206.98,74.9893]
[1756482727905,18.97949758,207.12,206.98,74.9893]
[1756482728100,18.97949758,207.12,206.98,7.36]
[1756482729007,11.38949758,207.17,207.04,67.6096]
[1756482729214,7.59,207.18,207.1,4.3451]
[1756482729511,7.59,207.18,207.07,7.36]
[1756482730014,4.3438,207.16,207.07,7.36]
[1756482730210,11.38949758,207.17,207.02,74.9755]
[1756482730609,11.38949758,207.17,207.03,67.6132]
[1756482730809,7.59,207.15,207.02,7.36]
[1756482731809,4.3449,207.12,207.03,4.3463]
[1756482732006,4.3449,207.12,206.97,7.36]
[1756482732007,7.59,207.11,206.97,7.36]
[1756482732206,4.3459,207.07,206.99,4.3472]
[1756482732407,67.5855,207.12,206.97,7.36]
[1756482732408,7.59,207.08,206.97,7.36]
[1756482732613,7.59,207.08,206.94,67.6425]
[1756482732908,7.59,207.08,206.99,4.3474]
[1756482733115,18.97949758,207.13,206.99,7.36]
[1756482733503,4.3447,207.12,207.0,67.6223]
[1756482733812,7.59,207.13,206.99,7.36]
[1756482734511,4.3452,207.1,207.02,4.3467]
[1756482734712,11.38949758,207.12,206.99,7.36]
[1756482734910,7.59,207.13,207.01,74.9779]
[1756482735102,11.38949758,207.16,207.01,7.36]
[1756482735311,7.59,207.18,207.04,67.6103]
[1756482735509,11.9334,207.18,207.09,4.3453]
[1756482735710,186.74033782,207.2,207.09,67.5938]
[1756482735911,186.74033782,207.2,207.07,74.96]
[1756482736214,186.74033782,207.2,207.11,4.3447]
[1756482736215,4.3434,207.19,207.11,4.3447]
[1756482736414,18.97949758,207.19,207.07,7.36]
[1756482736614,18.97949758,207.19,207.0,67.6235]
[1756482736615,18.97949758,207.19,207.05,67.6058]
[1756482736810,7.59,207.19,207.06,7.36]
[1756482737010,186.74033782,207.2,207.09,7.36]
[1756482737310,194.33033782,207.2,207.09,7.36]
[1756482737514,11.38949758,207.18,207.03,7.36]
[1756482737711,11.38949758,207.18,207.09,4.3451]
[1756482738007,11.38949758,207.18,207.07,7.36]
[1756482738008,194.33033782,207.2,207.08,67.5972]
[1756482738213,194.33033782,207.2,207.11,4.3447]
[1756482738415,194.33033782,207.2,207.08,67.5972]